fUST/lending_fUST_20260222
["ID","MTS","AMOUNT","RATE_DAILY","PERIOD"]
[406294059,1771696238359,-507.36231634,0.00013273,2]
[406294060,1771696238368,-500.0,0.00013273,2]
[406294061,1771696238378,-500.0,0.00013273,2]
[406294062,1771696238387,-500.0,0.00013273,2]
[406294063,1771696238397,-500.0,0.00013273,2]
[406294064,1771696238406,-509.68702111,0.00013273,2]
[406294065,1771696238415,-500.0,0.00013273,2]
[406294066,1771696238424,-500.0,0.00013273,2]
[406294067,1771696238433,-500.0,0.00013273,2]
[406294068,1771696238442,-1812.36652991,0.00013594,2]
[406294069,1771696238451,-300.0,0.00013673,2]
[406294070,1771696238461,-287.94461684,0.00013698,2]
[406294071,1771696238470,-301.701424,0.00013699,2]
[406294072,1771696238479,-1000.0,0.00013699,2]
[406294073,1771696238488,-1193.2313835,0.00013699,2]
[406294074,1771696238498,-500.0,0.00013699,2]
[406294075,1771696238507,-500.0,0.00013699,2]
[406294076,1771696238517,-500.0,0.00013699,2]
[406294077,1771696238526,-500.0,0.00013699,2]
[406294078,1771696238535,-312.07000605,0.00013699,2]
[406294079,1771696238545,-250.0,0.00013699,2]
[406294080,1771696238554,-500.0,0.00013699,2]
[406294081,1771696238565,-500.0,0.00013699,2]
[406294082,1771696238574,-500.0,0.00013699,2]
[406294083,1771696238584,-500.0,0.00013699,2]
[406294084,1771696238593,-500.0,0.00013699,2]
[406294085,1771696238603,-500.27952086,0.00013699,2]
[406294086,1771696238612,-500.87781811,0.00013699,2]
[406294087,1771696238621,-500.0,0.00013699,2]
[406294088,1771696238630,-500.0,0.00013699,2]
[406294089,1771696238640,-620.83028035,0.00013699,2]
[406294090,1771696238649,-500.0,0.00013699,2]
[406294091,1771696238659,-500.0,0.00013699,2]
[406294092,1771696238668,-500.0,0.00013699,2]
[406294093,1771696238677,-500.0,0.00013699,2]
[406294094,1771696238686,-228.6744567,0.00013699,2]
[406294095,1771696238695,-500.0,0.00013699,2]
[406294096,1771696238705,-434.36058634,0.00013699,2]
[406294097,1771696238714,-500.0,0.00013699,2]
[406294098,1771696238723,-500.27777417,0.00013699,2]
[406294099,1771696238732,-533.07012677,0.00013699,2]
[406294100,1771696238741,-462.12950358,0.00013699,2]
[406294101,1771696238750,-500.0,0.00013699,2]
[406294102,1771696238760,-500.0,0.00013699,2]
[406294103,1771696238768,-177.0,0.00014309,2]
[406294104,1771696238778,-216.471993,0.00015068,2]
[406294105,1771696238787,-216.0,0.00016309,2]
[406294106,1771696238796,-156.12449561,0.00016438,2]
[406294107,1771696238806,-216.471993,0.00018493,2]
[406294108,1771696238815,-164.03,0.000192,2]
[406294109,1771696238824,-301.701424,0.00020548,2]
[406294110,1771696238834,-216.471993,0.00021918,2]
[406294111,1771696238843,-743.87469872,0.00024982,2]
[406294112,1771696238852,-216.471993,0.00025342,2]
[406294113,1771696238860,-333.0,0.00025905,10]
[406294114,1771696238866,-150.0,0.00028,5]
[406294115,1771696238874,-200.0,0.00028336,17]
[406294116,1771696238880,-250.0,0.00028548,5]
[406294117,1771696238888,-216.471993,0.00028767,60]
[406294118,1771696238894,-350.0,0.00029096,5]
[406294119,1771696238901,-785.0,0.000293,2]
[406294120,1771696238907,-450.0,0.00029644,5]
[406294121,1771696238915,-193.0,0.00029753,14]
[406294122,1771696238922,-162.0,0.0003,14]
[406294123,1771696238930,-342.06375408,0.00030142,120]
[406294124,1771696238936,-550.0,0.00030192,5]
[406294125,1771696238943,-355.15211557,0.00030253,2]
[406294126,1771696238953,-650.0,0.0003074,5]
[406294127,1771696238960,-158.519,0.00031198,28]
[406294128,1771696238970,-750.0,0.00031288,5]
[406294129,1771696238979,-164.03,0.000318,7]
[406294130,1771696238988,-850.0,0.00031836,5]
[406294131,1771696238998,-250.000001,0.00032,3]
[406294132,1771696239007,-200.0,0.00032271,32]
[406294133,1771696239016,-135.87998863,0.00032384,5]
[406294134,1771696239032,-814.12001137,0.00032384,5]
[406294135,1771696239042,-924.8109503,0.00032428,14]
[406294136,1771696239051,-2027.6964916,0.00032577,2]
[406294175,1771696243570,-500.0,0.00013692,2]
[406294176,1771696243579,-500.0,0.00013692,2]
[406294177,1771696243588,-500.0,0.00013692,2]
[406294178,1771696243597,-500.0,0.00013692,2]
[406294179,1771696243606,-500.0,0.00013692,2]
[406294180,1771696243615,-500.0,0.00013692,2]
[406294181,1771696243625,-458.85116216,0.00013692,2]
[406294182,1771696243635,-500.0,0.00013692,2]
[406294183,1771696243644,-500.0,0.00013692,2]
[406294184,1771696243653,-627.01995272,0.00013692,2]
[406294185,1771696243663,-500.0,0.00013692,2]
[406294186,1771696243671,-500.0,0.00013692,2]
[406294187,1771696243681,-413.69138912,0.00013692,2]
[406294188,1771696243692,-86.30861088,0.00013692,2]
[406294189,1771696243701,-500.0,0.00013692,2]
[406294190,1771696243710,-500.0,0.00013692,2]
[406294191,1771696243719,-500.0,0.00013692,2]
[406294192,1771696243728,-500.0,0.00013692,2]
[406294193,1771696243737,-500.0,0.00013692,2]
[406294194,1771696243746,-500.0,0.00013692,2]
[406294195,1771696243755,-304.31856276,0.00013692,2]
[406294196,1771696243764,-500.0,0.00013692,2]
[406294197,1771696243773,-500.0,0.00013692,2]
[406294198,1771696243782,-500.0,0.00013692,2]
[406294199,1771696243792,-500.0,0.00013692,2]
[406294200,1771696243801,-500.0,0.00013692,2]
[406294201,1771696243810,-500.0,0.00013692,2]
[406294202,1771696243819,-500.0,0.00013692,2]
[406294203,1771696243828,-500.0,0.00013692,2]
[406294204,1771696243838,-500.0,0.00013692,2]
[406294205,1771696243847,-500.0,0.00013692,2]
[406294206,1771696243860,-500.0,0.00013692,2]
[406294207,1771696243870,-500.0,0.00013692,2]
[406294208,1771696243879,-500.0,0.00013692,2]
[406294209,1771696243888,-500.0,0.00013692,2]
[406294210,1771696243897,-500.0,0.00013692,2]
[406294211,1771696243906,-500.0,0.00013692,2]
[406294212,1771696243915,-500.0,0.00013692,2]
[406294213,1771696243926,-500.0,0.00013692,2]
[406294214,1771696243935,-500.0,0.00013692,2]
[406294215,1771696243944,-500.0,0.00013692,2]
[406294216,1771696243953,-500.0,0.00013692,2]
[406294217,1771696243963,-500.0,0.00013692,2]
[406294218,1771696243972,-500.0,0.00013692,2]
[406294219,1771696243981,-500.0,0.00013692,2]
[406294220,1771696243990,-410.69961199,0.00013692,2]
[406294221,1771696243999,-500.0,0.00013699,2]
[406294222,1771696244009,-500.0,0.00013699,2]
[406294223,1771696244018,-500.0,0.00013699,2]
[406294224,1771696244030,-500.0,0.00013699,2]
[406294225,1771696244039,-500.0,0.00013699,2]
[406294226,1771696244049,-500.0,0.00013699,2]
[406294227,1771696244058,-500.0,0.00013699,2]
[406294228,1771696244066,-500.0,0.00013699,2]
[406294229,1771696244075,-500.0,0.00013699,2]
[406294230,1771696244084,-500.0,0.00013699,2]
[406294231,1771696244094,-500.0,0.00013699,2]
[406294232,1771696244103,-500.0,0.00013699,2]
[406294233,1771696244112,-500.0,0.00013699,2]
[406294234,1771696244121,-500.0,0.00013699,2]
[406294235,1771696244131,-500.0,0.00013699,2]
[406294236,1771696244140,-500.0,0.00013699,2]
[406294237,1771696244150,-500.0,0.00013699,2]
[406294238,1771696244159,-500.0,0.00013699,2]
[406294239,1771696244170,-500.0,0.00013699,2]
[406294240,1771696244182,-500.0,0.00013699,2]
[406294241,1771696244191,-500.0,0.00013699,2]
[406294242,1771696244199,-475.08627021,0.00013699,2]
[406294243,1771696244208,-150.0,0.00031788,30]
[406294244,1771696244219,-1963.626724,0.00032577,2]
[406294245,1771696244227,-950.6752983,0.00032577,2]
[406294246,1771696244236,-995.5,0.00032577,30]
[406294247,1771696244246,-400.28516932,0.00032592,2]
[406294248,1771696244256,-457.46876494,0.00032592,2]
[406294249,1771696244265,-367.70527294,0.00032592,2]
[406294250,1771696244275,-661.86949129,0.00032592,2]
[406294251,1771696244283,-1176.6568734,0.00032592,2]
[406294252,1771696244292,-402.0,0.00032916,11]
[406294253,1771696244302,-1050.0,0.00032932,5]
[406294254,1771696244313,-425.68119366,0.0003298,2]
[406294255,1771696244322,-402.0,0.0003304,11]
[406294256,1771696244331,-279.07190241,0.000332,117]
[406294257,1771696244339,-279.0719024,0.000332,117]
[406294258,1771696244348,-279.0719024,0.000332,117]
[406294259,1771696244359,-1225.92528467,0.00033479,5]
[406294260,1771696244369,-436.94162735,0.0003366,10]
[406294261,1771696244378,-2382.38,0.00033669,10]
[406294262,1771696244387,-3785.86,0.00033679,10]
[406294263,1771696244396,-4543.04,0.00033689,10]
[406294264,1771696244405,-500.0,0.00033699,10]
[406294265,1771696244414,-250.0,0.00033699,10]
[406294266,1771696244423,-500.0,0.00033699,10]
[406294267,1771696244432,-250.0,0.00033699,10]
[406294268,1771696244441,-500.0,0.00033699,10]
[406294269,1771696244450,-250.0,0.00033699,10]
[406294270,1771696244459,-500.0,0.00033699,10]
[406294271,1771696244468,-250.0,0.00033699,10]
[406294272,1771696244477,-500.0,0.00033699,10]
[406294273,1771696244486,-250.0,0.00033699,10]
[406294274,1771696244494,-250.0,0.00033699,10]
[406294275,1771696244503,-209.40437684,0.00033699,10]
[406294276,1771696244512,-500.0,0.00033699,10]
[406294277,1771696244521,-250.0,0.00033699,10]
[406294278,1771696244530,-217.15233878,0.00033699,10]
[406294279,1771696244539,-500.0,0.00033699,10]
[406294280,1771696244548,-250.0,0.00033699,10]
[406294281,1771696244557,-225.18697532,0.00033699,10]
[406294282,1771696244566,-500.0,0.00033699,10]
[406294283,1771696244575,-250.0,0.00033699,10]
[406294284,1771696244584,-233.51889341,0.00033699,10]
[406294285,1771696244593,-500.0,0.00033699,10]
[406294286,1771696244602,-349.91330058,0.00033699,10]
[406294287,1771696244612,-250.0,0.00033699,10]
[406294288,1771696244621,-242.15909246,0.00033699,10]
[406294289,1771696244630,-500.0,0.00033699,10]
[406294290,1771696244639,-250.0,0.00033699,10]
[406294291,1771696244648,-251.11897888,0.00033699,10]
[406294292,1771696244657,-500.0,0.00033699,10]
[406294293,1771696244666,-250.0,0.00033699,10]
[406294294,1771696244675,-260.4103811,0.00033699,10]
[406294295,1771696244684,-250.0,0.00033699,10]
[406294296,1771696244693,-270.0455652,0.00033699,10]
[406294297,1771696244702,-250.0,0.00033699,10]
[406294298,1771696244711,-280.03725112,0.00033699,10]
[406294299,1771696244720,-250.0,0.00033699,10]
[406294300,1771696244728,-290.39862941,0.00033699,10]
[406294301,1771696244738,-250.0,0.00033699,10]
[406294302,1771696244747,-301.1433787,0.00033699,10]
[406294303,1771696244756,-250.0,0.00033699,10]
[406294304,1771696244765,-250.0,0.00033699,10]
[406294305,1771696244774,-250.0,0.00033699,10]
[406294306,1771696244783,-250.0,0.00033699,10]
[406294307,1771696244792,-250.0,0.00033699,10]
[406294308,1771696244801,-250.0,0.00033699,10]
[406294309,1771696244810,-250.0,0.00033699,10]
[406294310,1771696244820,-250.0,0.00033699,10]
[406294311,1771696244829,-165.43297812,0.00033699,10]
[406294312,1771696244839,-309.891222,0.0003399,10]
[406294318,1771696246289,-2844.998778,0.0003399,10]
[406294319,1771696246299,-2112.61409852,0.00034,2]
[406294325,1771696267205,3365.17157541,0.000156,120]
[406294326,1771696288897,5000.0,0.000156,120]
[406294431,1771696862068,-1793.80069501,0.00012879,2]
[406294458,1771697432272,-365.18394445,0.00012497,2]
[406294459,1771697432283,-673.41,0.00012497,2]
[406294460,1771697432298,-2167.60536054,0.00012497,2]
[406294461,1771697432307,-599.0,0.00012623,2]
[406294462,1771697432316,-200.55567968,0.00012633,2]
[406294463,1771697432325,-150.0,0.00012734,2]
[406294464,1771697432334,-210.4049906,0.00013273,2]
[406294465,1771697432343,-500.73569914,0.00013273,2]
[406294466,1771697432352,-500.39857232,0.00013699,2]
[406294468,1771697432361,-500.0,0.00013699,2]
[406294470,1771697432369,-638.93155079,0.00013699,2]
[406294472,1771697432378,-500.0,0.00013699,2]
[406294473,1771697432387,-150.0,0.000137,2]
[406294474,1771697432396,-31.05648511,0.000142,2]
[406294495,1771697438492,-118.94351489,0.000142,2]
[406294496,1771697438501,-992.37811241,0.00014247,2]
[406294497,1771697438510,-200.0,0.000148,2]
[406294498,1771697438520,-10.5431572,0.000149,2]
[406294513,1771697440860,-259.58459099,0.000149,2]
[406294514,1771697440870,-138.42093192,0.00028683,2]
[406294554,1771697443745,-605.4537668,0.00028683,2]
[406294556,1771697443754,-163.0,0.00029753,14]
[406294558,1771697443763,-978.0,0.00031,2]
[406294560,1771697443772,-397.0,0.00031885,3]
[406294562,1771697443781,-495.1681693,0.00032003,2]
[406294565,1771697443799,-594.1327008,0.00032003,2]
[406294567,1771697443808,-2743.222748,0.000322,2]
[406294570,1771697443817,-402.0,0.00032205,3]
[406294572,1771697443826,-200.0,0.00032641,34]
[406294574,1771697443835,-283.78746244,0.0003298,2]
[406294576,1771697443845,-461.20864537,0.00033556,2]
[406294578,1771697443855,-881.68405053,0.00033556,2]
[406294658,1771697446440,-309.54,0.00033556,2]
[406295190,1771697541097,340.405,0.000156,120]
[406295249,1771698632536,-4190.97007627,0.00012932,2]
[406295286,1771698638595,-809.02992373,0.00012932,2]
[406295288,1771698638606,-603.0,0.00012932,2]
[406295290,1771698638616,-150.0,0.00013196,2]
[406295292,1771698638627,-208.70215394,0.00013599,2]
[406295294,1771698638637,-170.81641082,0.00013699,2]
[406295296,1771698638646,-500.0,0.00013699,2]
[406295298,1771698638656,-500.0,0.00013699,2]
[406295300,1771698638666,-1000.0,0.00014247,2]
[406295302,1771698638675,-177.0,0.00015196,2]
[406295304,1771698638685,-204.0,0.00017196,2]
[406295306,1771698638695,-180.393331,0.00018346,2]
[406295308,1771698638704,-231.0,0.00019196,2]
[406295310,1771698638713,-15555.91360867,0.0002,20]
[406295312,1771698638723,-258.0,0.00021196,2]
[406295314,1771698638733,-285.0,0.00023196,2]
[406295316,1771698638742,-743.87469872,0.00024644,2]
[406295318,1771698638752,-186.93288143,0.00024899,2]
[406295329,1771698638859,-500.0,0.00024989,2]
[406295332,1771698638877,-615.82345294,0.00024989,2]
[406295334,1771698638889,-500.0,0.00024989,2]
[406295336,1771698638899,-500.0,0.00024989,2]
[406295338,1771698638908,-500.0,0.00024989,2]
[406295340,1771698638917,-500.0,0.00024989,2]
[406295342,1771698638926,-500.0,0.00024989,2]
[406295343,1771698638936,-315.96790255,0.00024989,2]
[406295345,1771698638945,-500.0,0.00024989,2]
[406295347,1771698638954,-500.0,0.00024989,2]
[406295349,1771698638964,-500.0,0.00024989,2]
[406295351,1771698638973,-477.34538857,0.00024989,2]
[406295353,1771698638982,-500.0,0.00024989,2]
[406295355,1771698638992,-500.0,0.00024989,2]
[406295357,1771698639001,-500.0,0.00024989,2]
[406295359,1771698639010,-500.0,0.00024989,2]
[406295361,1771698639020,-500.0,0.00024989,2]
[406295363,1771698639029,-500.0,0.00024989,2]
[406295365,1771698639038,-500.0,0.00024989,2]
[406295367,1771698639048,-500.0,0.00024989,2]
[406295369,1771698639057,-500.0,0.00024989,2]
[406295371,1771698639066,-500.0,0.00024989,2]
[406295373,1771698639076,-500.0,0.00024989,2]
[406295374,1771698639085,-500.0,0.00024989,2]
[406295375,1771698639094,-500.0,0.00024989,2]
[406295376,1771698639103,-500.0,0.00024989,2]
[406295377,1771698639113,-500.0,0.00024989,2]
[406295378,1771698639122,-500.0,0.00024989,2]
[406295379,1771698639132,-500.0,0.00024989,2]
[406295380,1771698639142,-500.0,0.00024989,2]
[406295381,1771698639152,-500.0,0.00024989,2]
[406295382,1771698639161,-500.0,0.00024989,2]
[406295383,1771698639171,-500.0,0.00024989,2]
[406295384,1771698639180,-500.0,0.00024989,2]
[406295385,1771698639190,-500.0,0.00024989,2]
[406295386,1771698639199,-500.0,0.00024989,2]
[406295387,1771698639207,-500.0,0.00024989,2]
[406295388,1771698639216,-500.0,0.00024989,2]
[406295389,1771698639225,-500.0,0.00024989,2]
[406295390,1771698639235,-500.0,0.00024989,2]
[406295391,1771698639244,-500.0,0.00024989,2]
[406295392,1771698639253,-500.0,0.00024989,2]
[406295393,1771698639261,-500.0,0.00024989,2]
[406295394,1771698639270,-500.0,0.00024989,2]
[406295395,1771698639279,-500.0,0.00024989,2]
[406295396,1771698639288,-382.57259348,0.00024989,2]
[406295397,1771698639297,-500.0,0.00024989,2]
[406295398,1771698639307,-500.0,0.00024989,2]
[406295399,1771698639317,-500.0,0.00024989,2]
[406295400,1771698639327,-500.0,0.00024989,2]
[406295401,1771698639336,-500.0,0.00024989,2]
[406295402,1771698639345,-500.0,0.00024989,2]
[406295403,1771698639354,-500.0,0.00024989,2]
[406295404,1771698639364,-500.0,0.00024989,2]
[406295405,1771698639374,-500.0,0.00024989,2]
[406295406,1771698639384,-646.21194823,0.00024989,2]
[406295407,1771698639394,-500.0,0.00024989,2]
[406295408,1771698639403,-500.0,0.00024989,2]
[406295409,1771698639412,-500.0,0.00024989,2]
[406295410,1771698639421,-500.0,0.00024989,2]
[406295411,1771698639430,-500.0,0.00024989,2]
[406295412,1771698639438,-500.0,0.00024989,2]
[406295413,1771698639447,-500.0,0.00024989,2]
[406295414,1771698639456,-258.63141182,0.00024989,2]
[406295415,1771698639465,-500.0,0.00024989,2]
[406295416,1771698639474,-500.0,0.00024989,2]
[406295417,1771698639483,-500.0,0.00024989,2]
[406295418,1771698639493,-500.0,0.00024989,2]
[406295419,1771698639502,-500.0,0.00024989,2]
[406295420,1771698639512,-500.0,0.00024989,2]
[406295421,1771698639521,-500.0,0.00024989,2]
[406295422,1771698639530,-500.0,0.00024989,2]
[406295423,1771698639539,-500.0,0.00024989,2]
[406295424,1771698639549,-500.0,0.00024989,2]
[406295425,1771698639558,-500.0,0.00024989,2]
[406295426,1771698639568,-500.0,0.00024989,2]
[406295427,1771698639577,-500.0,0.00024989,2]
[406295428,1771698639586,-500.0,0.00024989,2]
[406295429,1771698639596,-500.0,0.00024989,2]
[406295430,1771698639607,-500.0,0.00024989,2]
[406295431,1771698639618,-500.0,0.00024989,2]
[406295432,1771698639627,-500.0,0.00024989,2]
[406295433,1771698639636,-500.0,0.00024989,2]
[406295434,1771698639647,-500.0,0.00024989,2]
[406295435,1771698639657,-500.0,0.00024989,2]
[406295436,1771698639666,-500.0,0.00024989,2]
[406295437,1771698639676,-500.0,0.00024989,2]
[406295438,1771698639685,-500.0,0.00024989,2]
[406295439,1771698639694,-500.0,0.00024989,2]
[406295440,1771698639703,-500.0,0.00024989,2]
[406295441,1771698639712,-500.0,0.00024989,2]
[406295442,1771698639725,-500.0,0.00024989,2]
[406295443,1771698639735,-500.0,0.00024989,2]
[406295444,1771698639744,-500.0,0.00024989,2]
[406295445,1771698639753,-500.0,0.00024989,2]
[406295446,1771698639763,-500.0,0.00024989,2]
[406295447,1771698639772,-500.0,0.00024989,2]
[406295448,1771698639782,-500.0,0.00024989,2]
[406295449,1771698639792,-532.34242402,0.00024989,2]
[406295450,1771698639801,-206.84633699,0.00024989,2]
[406295467,1771698640967,-293.15366301,0.00024989,2]
[406295469,1771698640976,-47.27957577,0.00024989,2]
[406295760,1771698643814,-452.72042423,0.00024989,2]
[406295762,1771698643825,-500.0,0.00024989,2]
[406295764,1771698643836,-500.0,0.00024989,2]
[406295766,1771698643844,-500.0,0.00024989,2]
[406295768,1771698643855,-1145.59,0.0002499,10]
[406295770,1771698643864,-380.14810529,0.00024998,2]
[406295772,1771698643873,-26444.39091032,0.00025,15]
[406295774,1771698643884,-3172.0563813,0.00025,15]
[406295893,1771698646556,-4305.00548626,0.00024739,2]
[406295894,1771698646566,-23993.68112634,0.00025,15]
[406295895,1771698646663,-5732.123113,0.00025,15]
[406295896,1771698681773,-165.78854723,0.00013699,2]
[406295957,1771699831689,-543.0,0.00013225,2]
[406295959,1771699831701,-1410.58823967,0.00013225,2]
[406295961,1771699831710,-608.0,0.00013225,2]
[406295964,1771699831720,-150.0,0.00013292,2]
[406295966,1771699831729,-3956.86886352,0.00013596,2]
[406295969,1771699831738,-300.0,0.00013695,2]
[406295972,1771699831747,-1200.0,0.00013695,2]
[406295975,1771699831756,-500.0,0.00013696,2]
[406295978,1771699831765,-500.0,0.00013696,2]
[406295979,1771699831774,-302.07409634,0.00013696,2]
[406295981,1771699831783,-500.0,0.00013696,2]
[406295982,1771699831792,-500.0,0.00013696,2]
[406295984,1771699831802,-500.0,0.00013696,2]
[406295986,1771699831811,-500.0,0.00013696,2]
[406295987,1771699831820,-500.0,0.00013696,2]
[406295988,1771699831829,-500.0,0.00013696,2]
[406295989,1771699831838,-500.0,0.00013696,2]
[406295990,1771699831848,-500.0,0.00013696,2]
[406295991,1771699831857,-516.4255884,0.00013696,2]
[406295992,1771699831866,-500.0,0.00013696,2]
[406295993,1771699831875,-500.0,0.00013696,2]
[406295994,1771699831884,-500.0,0.00013696,2]
[406295995,1771699831894,-500.0,0.00013696,2]
[406295996,1771699831903,-500.0,0.00013696,2]
[406295997,1771699831912,-500.0,0.00013696,2]
[406295998,1771699831921,-500.0,0.00013696,2]
[406295999,1771699831930,-500.0,0.00013696,2]
[406296000,1771699831937,-500.0,0.00013696,2]
[406296001,1771699831945,-500.0,0.00013696,2]
[406296002,1771699831954,-500.0,0.00013696,2]
[406296003,1771699831962,-500.0,0.00013696,2]
[406296004,1771699831970,-500.0,0.00013696,2]
[406296005,1771699831978,-500.0,0.00013696,2]
[406296006,1771699831987,-500.0,0.00013696,2]
[406296007,1771699831995,-500.0,0.00013696,2]
[406296008,1771699832004,-500.0,0.00013696,2]
[406296009,1771699832013,-500.0,0.00013696,2]
[406296010,1771699832021,-500.0,0.00013696,2]
[406296011,1771699832029,-500.0,0.00013696,2]
[406296012,1771699832038,-500.0,0.00013696,2]
[406296013,1771699832046,-500.0,0.00013696,2]
[406296014,1771699832056,-388.98052002,0.00013696,2]
[406296015,1771699832064,-500.0,0.00013696,2]
[406296016,1771699832072,-500.0,0.00013696,2]
[406296017,1771699832080,-500.0,0.00013696,2]
[406296018,1771699832089,-500.0,0.00013696,2]
[406296019,1771699832097,-500.0,0.00013696,2]
[406296020,1771699832106,-500.0,0.00013696,2]
[406296021,1771699832114,-500.0,0.00013696,2]
[406296022,1771699832217,-350.0,0.00013696,2]
[406296023,1771699832227,-244.57803794,0.00013696,2]
[406296024,1771699832234,-500.0,0.00013696,2]
[406296025,1771699832241,-500.0,0.00013696,2]
[406296026,1771699832248,-500.0,0.00013696,2]
[406296027,1771699832255,-500.0,0.00013696,2]
[406296028,1771699832262,-500.0,0.00013696,2]
[406296029,1771699832273,-500.0,0.00013696,2]
[406296030,1771699832280,-500.0,0.00013696,2]
[406296031,1771699832287,-500.0,0.00013696,2]
[406296032,1771699832295,-500.0,0.00013696,2]
[406296033,1771699832302,-500.0,0.00013696,2]
[406296034,1771699832308,-500.0,0.00013696,2]
[406296035,1771699832315,-500.0,0.00013696,2]
[406296036,1771699832323,-500.0,0.00013696,2]
[406296037,1771699832331,-500.0,0.00013696,2]
[406296038,1771699832338,-500.0,0.00013696,2]
[406296039,1771699832346,-500.0,0.00013696,2]
[406296040,1771699832354,-500.0,0.00013696,2]
[406296041,1771699832361,-500.0,0.00013696,2]
[406296042,1771699832368,-500.0,0.00013696,2]
[406296043,1771699832376,-500.0,0.00013696,2]
[406296044,1771699832383,-500.0,0.00013696,2]
[406296045,1771699832390,-500.0,0.00013696,2]
[406296046,1771699832397,-500.0,0.00013696,2]
[406296047,1771699832404,-500.0,0.00013696,2]
[406296048,1771699832411,-368.50039816,0.00013696,2]
[406296049,1771699832421,-131.49960184,0.00013696,2]
[406296050,1771699832429,-500.0,0.00013696,2]
[406296051,1771699832436,-39.44039816,0.00013696,2]
[406296087,1771699837926,-349.01504941,0.00013696,2]
[406296089,1771699837935,-500.0,0.00013696,2]
[406296091,1771699837945,-500.0,0.00013696,2]
[406296093,1771699837954,-500.0,0.00013696,2]
[406296095,1771699837964,-500.0,0.00013696,2]
[406296097,1771699837974,-500.0,0.00013696,2]
[406296099,1771699837983,-500.0,0.00013696,2]
[406296101,1771699837992,-500.0,0.00013696,2]
[406296103,1771699838001,-500.0,0.00013696,2]
[406296105,1771699838010,-500.0,0.00013696,2]
[406296107,1771699838019,-467.77537284,0.00013696,2]
[406296109,1771699838029,-500.0,0.00013696,2]
[406296111,1771699838037,-500.0,0.00013696,2]
[406296113,1771699838047,-500.0,0.00013696,2]
[406296116,1771699838056,-500.0,0.00013696,2]
[406296119,1771699838066,-500.0,0.00013696,2]
[406296122,1771699838075,-500.0,0.00013696,2]
[406296125,1771699838085,-500.0,0.00013696,2]
[406296128,1771699838094,-300.0,0.00013696,2]
[406296131,1771699838103,-300.0,0.00013696,2]
[406296134,1771699838113,-5123.60612714,0.00013697,2]
[406296137,1771699838122,-416.30861555,0.00013698,2]
[406296140,1771699838132,-500.0,0.00013699,2]
[406296143,1771699838142,-500.0,0.00013699,2]
[406296146,1771699838151,-500.0,0.00013699,2]
[406296149,1771699838160,-500.0,0.00013699,2]
[406296151,1771699838171,-500.0,0.00013699,2]
[406296153,1771699838181,-500.0,0.00013699,2]
[406296155,1771699838190,-500.24608868,0.00013699,2]
[406296157,1771699838199,-500.0,0.00013699,2]
[406296159,1771699838209,-500.49406471,0.00013699,2]
[406296161,1771699838218,-500.0,0.00013699,2]
[406296163,1771699838227,-500.0,0.00013699,2]
[406296165,1771699838236,-228.69808722,0.00013699,2]